bitfinex/quotes_ETHUSD_20241212
["timestamp","ask_amount","ask_price","bid_price","bid_amount"]
[1733994438555,1.46120893,3920.6,3920.1,2.55095]
[1733994444215,1.32837175,3920.9,3919.9,3.61188356]
[1733994444412,1.32837175,3920.8,3920.1,1.06086356]
[1733994444625,1.32837175,3920.8,3920.2,3.42878265]
[1733994444919,1.32837175,3920.8,3920.3,2.1947558]
[1733994445067,1.32837175,3920.8,3920.4,0.87790265]
[1733994445405,1.32837175,3920.8,3920.2,2.55088]
[1733994445605,1.32837175,3920.8,3920.3,2.1948091]
[1733994445782,1.32837175,3920.8,3920.4,0.87789874]
[1733994445978,1.06569792,3921.5,3920.5,0.87782024]
[1733994446175,4.66083274,3921.7,3920.5,0.87782024]
[1733994446176,1.32837175,3921.1,3920.7,2.55052]
[1733994446375,1.32837175,3921.4,3920.5,2.55069]
[1733994446591,1.56777872,3921.4,3920.5,2.55069]
[1733994446985,1.56777872,3921.4,3920.3,0.7651]
[1733994446986,1.69837182,3921.4,3920.3,3.31591]
[1733994447179,1.69837182,3921.4,3920.4,2.1941062]
[1733994447509,1.69837182,3921.4,3920.5,0.87748105]
[1733994447715,1.32837175,3921.1,3920.1,1.06086356]
[1733994448037,1.32837175,3921.1,3920.1,4.74497128]
[1733994448327,1.32837175,3921.1,3920.2,2.19407466]
[1733994448534,1.32837175,3921.1,3920.0,3.61186356]
[1733994448831,1.32837175,3921.1,3920.1,2.19389683]
[1733994449189,1.32837175,3920.8,3920.2,2.19389683]
[1733994449390,1.32837175,3920.8,3919.7,1.06086356]
[1733994449391,3.87887175,3920.8,3919.7,1.06086356]
[1733994449631,3.87887175,3920.8,3919.8,0.87774299]
[1733994449786,3.87887175,3920.8,3919.6,4.37723356]
[1733994449985,3.87887175,3920.8,3919.7,2.19456152]
[1733994450241,3.87887175,3920.8,3919.8,0.87782461]
[1733994450394,3.87887175,3920.8,3919.6,4.37723356]
[1733994450603,3.87887175,3920.8,3919.7,2.1946656]
[1733994451135,3.87887175,3920.8,3919.7,4.7458656]
[1733994451297,3.87887175,3920.8,3919.8,2.1946656]
[1733994452790,3.87887175,3920.8,3919.7,2.5512]
[1733994453004,3.87887175,3920.8,3919.8,0.87796945]
[1733994453541,3.10056,3920.7,3919.8,0.87796945]
[1733994453745,3.10056,3920.7,3919.9,0.87796945]
[1733994453884,3.10056,3920.7,3919.6,1.06086356]
[1733994454182,0.55,3920.7,3919.6,3.25565563]
[1733994454387,0.55,3920.7,3919.7,3.25565563]
[1733994455734,0.55,3920.7,3919.7,3.28116478]
[1733994455942,0.55,3920.7,3919.8,2.19479207]
[1733994456117,0.55,3920.7,3919.6,3.61207356]
[1733994456435,0.55,3920.7,3919.7,2.19498393]
[1733994457437,0.55,3920.7,3919.7,2.22049308]
[1733994457635,0.55,3920.7,3919.7,0.02550915]
[1733994457864,1.06569792,3921.0,3919.9,0.8232]
[1733994458143,1.32837175,3920.8,3919.6,1.06086356]
[1733994458305,3.87891175,3920.8,3919.7,2.19497302]
[1733994458643,3.87891175,3920.8,3919.8,0.87798921]
[1733994459158,1.06569792,3921.0,3919.8,0.87798921]
[1733994459159,1.32837175,3920.5,3919.8,0.87798921]
[1733994459444,1.06569792,3921.0,3919.4,1.06086356]
[1733994459445,1.32837175,3920.2,3919.4,1.06086356]
[1733994459737,1.32837175,3920.2,3919.5,2.19533048]
[1733994459903,1.32837175,3920.2,3919.6,0.87813219]
[1733994460090,1.32837175,3920.2,3919.3,3.61233356]
[1733994460294,1.06569792,3920.7,3919.3,3.61233356]
[1733994460295,3.61627792,3920.7,3919.5,2.5513]
[1733994460526,1.32837175,3920.5,3919.5,2.5513]
[1733994460840,1.32837175,3920.5,3919.6,0.87820389]
[1733994461506,1.32837175,3920.5,3919.4,2.55138]
[1733994461709,1.32837175,3920.5,3919.5,2.19541075]
[1733994461924,1.32837175,3920.5,3919.6,0.8781643]
[1733994462120,1.32837175,3920.5,3919.4,2.55138]
[1733994462440,1.32837175,3920.5,3919.5,2.1954086]
[1733994462642,1.32837175,3920.5,3919.6,0.87816344]
[1733994462822,1.93229241,3920.5,3919.4,2.55138]
[1733994463020,1.93229241,3920.5,3919.5,2.19545885]
[1733994463229,1.93229241,3920.5,3919.6,0.87818354]
[1733994463544,1.93229241,3920.5,3919.4,2.55138]
[1733994463705,4.48299241,3920.5,3919.5,2.19563988]
[1733994463907,1.93229241,3920.5,3919.5,2.19563988]
[1733994464137,1.32837175,3920.5,3919.6,2.19561755]
[1733994464349,1.32837175,3920.5,3919.8,2.55114]
[1733994464641,1.32837175,3920.8,3920.0,2.55099]
[1733994467824,1.06569792,3921.1,3919.8,0.8232]
[1733994468033,1.32837175,3920.9,3919.8,5.3131924]
[1733994468201,1.32837175,3920.6,3919.9,3.25596066]
[1733994468536,1.32837175,3920.6,3919.8,0.8232]
[1733994468704,1.32837175,3920.6,3919.9,0.87816915]
[1733994469838,2.55039,3921.0,3919.9,0.87816915]
[1733994469839,1.32837175,3920.9,3919.9,3.42920915]
[1733994470007,1.32837175,3920.9,3920.0,2.19557811]
[1733994470209,1.32837175,3920.9,3919.9,2.55104]
[1733994470547,1.32837175,3920.9,3920.0,2.19577865]
[1733994470837,1.32837175,3920.9,3919.9,2.55104]
[1733994471043,1.32837175,3920.9,3920.0,2.19594485]
[1733994471342,1.32837175,3920.9,3920.1,0.87837019]
[1733994471637,1.32837175,3920.9,3920.0,2.55099]
[1733994471839,1.32837175,3920.9,3920.1,0.87835857]
[1733994474151,1.32837175,3920.9,3920.0,2.55099]
[1733994475502,1.32837175,3920.9,3919.8,1.88406356]
[1733994475811,1.32837175,3920.9,3920.1,2.55093]
[1733994477718,1.32837175,3920.9,3919.8,3.37429]
[1733994478024,1.32837175,3920.9,3919.9,4.74859466]
[1733994478217,1.32837175,3920.9,3920.0,0.87901386]
[1733994479162,1.32837175,3920.9,3919.9,2.55106]
[1733994479367,1.32837175,3920.9,3920.0,0.87910505]
[1733994480242,2.39406967,3920.9,3920.0,0.87910505]
[1733994480578,2.39406967,3920.9,3920.1,0.87978739]
[1733994480872,2.39406967,3920.9,3919.9,3.61192356]
[1733994481029,1.32837175,3920.9,3920.0,3.26031868]
[1733994481222,1.32837175,3920.9,3920.1,5.81120868]
[1733994481471,1.32837175,3920.9,3920.2,2.19945512]
[1733994481778,1.32837175,3920.9,3920.3,2.19945512]
[1733994481932,1.32837175,3920.9,3920.1,3.61175356]
[1733994482255,1.32837175,3920.9,3920.2,2.19940921]
[1733994482456,1.32837175,3920.9,3920.3,0.87976368]
[1733994482778,1.32837175,3920.9,3920.1,1.06086356]
[1733994482987,1.32837175,3920.9,3920.2,0.8797704]
[1733994483268,1.32837175,3920.9,3920.1,1.06086356]
[1733994483269,1.32837175,3920.9,3920.3,0.8797704]
[1733994483477,1.32837175,3920.9,3920.1,1.06086356]
[1733994483776,1.32837175,3920.9,3920.2,0.87980303]
[1733994484078,1.32837175,3920.9,3919.9,3.61193356]
[1733994484243,1.32837175,3920.3,3920.0,2.19983133]
[1733994484444,1.32837175,3920.3,3919.6,1.06086356]
[1733994484661,1.32837175,3920.3,3919.7,2.2004745]
[1733994484826,1.32837175,3920.3,3919.5,1.06086356]
[1733994485024,1.32837175,3920.3,3919.6,2.20063167]
[1733994485229,1.32837175,3920.3,3919.7,0.88025267]
[1733994485454,1.32837175,3920.3,3919.2,4.13980322]
[1733994485455,1.32837175,3920.3,3919.5,1.06086356]
[1733994485684,1.32837175,3920.3,3919.6,0.88013186]
[1733994485828,1.32837175,3920.3,3919.7,2.20032966]
[1733994486027,1.32837175,3920.3,3919.5,1.06086356]
[1733994486322,1.32837175,3920.3,3919.6,0.88014883]
[1733994486572,3.87920175,3920.3,3919.6,0.88014883]
[1733994488783,2.55089,3920.2,3919.6,0.88014883]
[1733994489010,1.32837175,3919.7,3919.6,0.88014883]
[1733994489290,1.32837175,3919.7,3919.1,1.06086356]
[1733994489501,1.32837175,3919.7,3919.2,2.20031607]
[1733994489637,1.32837175,3919.7,3919.0,1.06086356]
[1733994489835,1.32837175,3919.4,3919.1,0.88017415]
[1733994490044,1.32837175,3919.4,3918.6,2.11771097]
[1733994490045,1.32837175,3919.2,3918.4,1.06086356]
[1733994490341,1.32837175,3919.2,3918.2,1.58828322]
[1733994490342,2.39406967,3919.5,3917.8,1.85296356]
[1733994490343,1.32837175,3918.6,3917.8,1.85296356]
[1733994490654,1.32837175,3918.6,3917.9,2.2008156]
[1733994491295,1.59854688,3919.3,3918.2,2.55218]
[1733994491296,1.32837175,3919.0,3918.2,2.55218]
[1733994491650,1.32837175,3919.0,3918.0,1.06086356]
[1733994492040,1.32837175,3919.0,3918.0,3.25955657]
[1733994492234,1.32837175,3919.0,3917.9,2.55232]
[1733994492235,1.32837175,3919.0,3918.1,2.19869301]
[1733994492576,1.32837175,3919.0,3918.2,0.8794772]
[1733994492734,1.32837175,3919.0,3917.9,3.61321356]
[1733994492942,1.32837175,3919.0,3918.0,4.75031573]
[1733994493139,1.32837175,3919.0,3918.1,2.19802573]
[1733994493380,1.32837175,3919.0,3918.0,2.55229]
[1733994493683,1.32837175,3919.0,3918.1,0.87907137]
[1733994494073,2.55141,3919.4,3918.1,3.43130137]
[1733994494389,1.32837175,3919.0,3918.1,2.55223]
[1733994495650,1.32837175,3919.0,3917.8,1.85296356]
[1733994495836,1.32837175,3919.0,3917.9,4.7493716]
[1733994496037,1.32837175,3919.0,3918.0,2.1970016]
[1733994496238,1.32837175,3919.0,3918.1,3.43073124]
[1733994496443,1.32837175,3919.0,3918.1,2.55225]
[1733994497061,1.32837175,3919.0,3917.8,3.34449]
[1733994497364,1.32837175,3919.0,3917.9,2.19587976]
[1733994497563,1.32837175,3919.0,3918.0,0.8783519]
[1733994497791,1.32837175,3919.0,3918.0,2.55231]
[1733994498103,1.32837175,3919.2,3917.9,0.7921]
[1733994498304,1.32837175,3919.2,3918.4,2.55199]
[1733994498872,1.32837175,3919.2,3918.5,2.55195]
[1733994500058,0.50456,3919.6,3918.1,0.7921]
[1733994500264,1.32837175,3919.6,3918.8,2.55175]
[1733994500498,1.46120893,3919.6,3918.8,2.55175]
[1733994501913,1.32837175,3919.6,3918.8,2.55175]
[1733994504618,1.32837175,3919.6,3918.9,2.55167]
[1733994504819,1.32837175,3919.6,3918.7,0.02551513]
[1733994505009,1.32837175,3919.6,3918.9,2.55172]
[1733994505209,0.49763884,3920.0,3918.7,0.02551513]
[1733994505386,0.26550828,3920.3,3918.7,0.02551513]
[1733994505586,1.32837175,3920.0,3919.4,2.5514]
[1733994506011,1.32837175,3920.0,3919.2,0.8005]
[1733994506012,1.32837175,3920.0,3919.5,2.55131]
[1733994506182,0.26550828,3920.3,3919.3,0.02551209]
[1733994506383,1.32837175,3920.3,3919.6,2.55125]
[1733994506611,1.32837175,3920.3,3919.8,2.55114]
[1733994508148,1.32837175,3920.6,3919.3,0.02551069]
[1733994508299,1.32837175,3920.6,3920.1,2.5509]
[1733994508884,1.32837175,3920.6,3920.3,2.55079]
[1733994509356,1.32837175,3920.9,3920.3,2.55079]
[1733994510865,1.32837175,3920.9,3920.1,0.8005]
[1733994511015,1.32837175,3920.9,3920.2,2.55086]
[1733994512055,1.32837175,3920.9,3920.1,3.35142]
[1733994516847,1.32837175,3920.9,3920.4,2.5507]
[1733994517043,1.32837175,3920.9,3920.5,2.55069]
[1733994518850,1.32837175,3920.9,3920.3,2.55081]
[1733994520140,1.32837175,3920.9,3920.4,2.55073]
[1733994520990,0.50561639,3921.6,3920.1,0.8005]
[1733994521280,1.32837175,3921.0,3920.2,2.55089]
[1733994521479,1.32837175,3921.0,3920.3,2.55081]
[1733994521697,1.32837175,3920.7,3920.3,2.55081]
[1733994522789,1.32837175,3920.7,3919.5,4.06086356]
[1733994522790,1.32837175,3920.4,3919.5,0.8005]
[1733994522948,1.32837175,3920.1,3919.2,3.35201]
[1733994523136,1.32837175,3920.1,3919.3,2.55147]
[1733994523885,1.32837175,3920.1,3918.7,4.13368413]
[1733994523886,1.32837175,3920.1,3918.9,3.35218]
[1733994524049,1.32837175,3920.1,3918.7,2.5518]
[1733994524246,1.32837175,3920.1,3918.6,0.8005]
[1733994524247,1.32837175,3919.8,3918.8,2.5518]
[1733994524652,1.32837175,3919.8,3918.6,0.8005]
[1733994525058,1.32837175,3919.8,3918.8,2.55179]
[1733994525896,0.13283718,3920.0,3918.6,0.8005]
[1733994526106,0.13283718,3920.0,3918.9,2.55172]
[1733994526107,1.32837175,3920.0,3918.9,2.55172]
[1733994526871,3.87940175,3920.0,3918.6,0.8005]
[1733994527065,3.87940175,3920.0,3918.7,2.55186]
[1733994527981,3.87961175,3919.7,3918.6,0.8005]
[1733994528156,3.87961175,3919.7,3918.4,2.552]
[1733994528356,3.87961175,3919.7,3918.6,2.55193]
[1733994529207,2.82471135,3920.2,3918.3,0.02551541]
[1733994529409,0.55,3920.0,3918.6,2.55188]
[1733994529571,2.55109,3919.9,3918.6,2.55188]
[1733994529986,2.55115,3919.8,3918.6,2.55188]
[1733994531262,2.55115,3919.8,3918.7,2.55184]
[1733994531660,0.55,3920.0,3918.8,0.02551541]
[1733994531897,0.55,3920.0,3918.7,2.55183]
[1733994531898,2.97739654,3919.9,3918.7,2.55183]
[1733994532102,2.97739654,3919.9,3918.8,0.02551542]
[1733994532402,0.42631654,3919.9,3918.8,2.57727542]
[1733994532962,2.97741654,3919.9,3918.8,2.55176]
[1733994534274,0.42631654,3919.9,3918.4,2.55206]
[1733994534492,0.42631654,3919.9,3918.5,0.02551541]
[1733994534695,0.42631654,3919.9,3918.8,2.55176]
[1733994534894,2.55115,3919.8,3918.4,2.55206]
[1733994535219,0.35274665,3919.7,3918.5,2.55196]
[1733994535517,0.35274665,3919.7,3918.6,2.55192]
[1733994535716,0.35274665,3919.7,3918.7,2.55186]
[1733994538615,0.35274665,3919.7,3918.8,0.7887]
[1733994538833,0.12711647,3919.8,3918.8,0.81421543]
[1733994539136,0.12711647,3919.8,3918.8,3.36600543]
[1733994539509,0.42631654,3919.9,3919.0,2.55165]
[1733994539682,0.55,3920.2,3919.0,2.55165]
[1733994540193,0.26521761,3920.3,3919.3,2.55144]
[1733994540395,0.26521761,3920.3,3918.9,2.55173]
[1733994540705,0.26521761,3920.3,3919.4,2.5514]
[1733994541234,0.26521761,3920.3,3918.9,2.55173]
[1733994541235,0.26521761,3920.3,3918.9,2.55168]
[1733994541531,2.55101,3920.1,3918.8,2.55179]
[1733994541902,2.55102,3920.0,3918.8,2.55179]
[1733994542749,2.8598929,3920.2,3919.0,2.55166]
[1733994543388,2.8598929,3920.2,3919.1,0.02551412]
[1733994543702,2.8598929,3920.2,3919.0,2.55166]
[1733994544014,0.3089929,3920.2,3919.2,2.55147]
[1733994544400,0.3089929,3920.2,3919.3,2.55146]
[1733994545013,2.8598829,3920.2,3918.7,1.06086356]
[1733994545211,2.8598829,3920.2,3919.0,2.55166]
[1733994547398,0.3089929,3920.2,3919.0,2.55166]
[1733994547603,2.86432043,3920.1,3919.0,2.55166]
[1733994548688,2.55112,3919.9,3918.7,2.55185]
[1733994549331,3.88034808,3919.9,3918.7,2.55185]
[1733994549544,2.55118,3919.8,3918.7,2.55185]
[1733994553032,2.55105,3920.0,3918.8,2.55178]
[1733994553338,4.16672012,3920.0,3918.8,2.55178]
[1733994555927,1.61567012,3920.0,3918.5,1.87507775]
[1733994556252,1.32922808,3920.3,3919.1,2.55154]
[1733994556531,1.32922808,3920.3,3919.2,2.55153]
[1733994557543,1.32922808,3920.3,3919.4,2.55138]
[1733994557690,0.12896675,3920.4,3919.5,2.57683164]
[1733994557889,1.32922808,3920.8,3919.3,1.32922808]
[1733994558314,1.06569792,3921.2,3919.3,1.32922808]
[1733994558315,1.32922808,3921.1,3919.7,0.794]
[1733994558470,1.32922808,3921.1,3920.1,2.55094]
[1733994559272,0.51193111,3921.6,3920.2,2.55082]
[1733994559273,0.12955131,3921.2,3920.2,2.55082]
[1733994559468,0.12955131,3921.2,3919.7,1.85486356]
[1733994559469,1.32922808,3921.1,3919.7,1.85486356]
[1733994559620,1.32922808,3921.1,3919.9,2.55104]
[1733994559823,1.32922808,3921.0,3919.8,2.55115]
[1733994560056,1.32922808,3921.0,3919.9,2.55104]
[1733994560371,1.32922808,3921.0,3919.7,3.794]
[1733994560523,1.32922808,3921.0,3919.9,2.55103]
[1733994563574,1.32922808,3921.0,3919.7,6.34521]
[1733994563870,1.32922808,3921.0,3919.7,3.34521]
[1733994563871,4.01252089,3921.0,3919.7,3.34521]
[1733994564468,4.01252089,3921.0,3919.8,2.55113]
[1733994564861,1.46215089,3921.0,3919.7,0.794]
[1733994565069,2.55043,3920.9,3919.7,0.794]
[1733994565893,2.55043,3920.9,3919.7,3.34519]
[1733994566174,1.1937317,3921.4,3919.7,0.794]
[1733994566385,3.87947808,3921.2,3920.0,2.55101]
[1733994566876,1.32922808,3921.2,3920.0,2.55101]
[1733994567059,2.5503,3921.1,3920.0,2.55101]
[1733994567833,2.5504,3921.0,3919.8,2.55114]
[1733994568072,2.97603509,3921.0,3919.9,4.74859748]
[1733994568285,2.97603509,3921.0,3920.0,0.87917374]
[1733994569587,2.97603509,3921.0,3919.9,2.55107]
[1733994570494,3.87946808,3921.2,3920.0,2.55095]
[1733994570692,3.87946808,3921.2,3920.1,0.02550648]
[1733994570860,3.87946808,3921.2,3920.1,2.55094]
[1733994571470,1.32922808,3921.2,3920.3,2.5508]
[1733994574254,1.45919821,3921.2,3920.3,2.5508]
[1733994576300,1.32922808,3921.7,3920.6,2.55062]
[1733994576449,3.87913808,3921.7,3920.6,2.55062]
[1733994576649,1.32922808,3921.4,3920.6,2.55062]
[1733994577108,1.32922808,3921.5,3920.6,2.55062]
[1733994577668,1.32922808,3921.5,3920.2,0.8152]
[1733994577669,1.32922808,3921.5,3920.4,2.55074]
[1733994577869,2.55006,3921.5,3920.4,2.55074]
[1733994578109,1.32922808,3921.4,3920.4,2.55074]
[1733994578704,3.87935808,3921.4,3920.2,3.36608]
[1733994579883,3.87935808,3921.4,3920.3,2.55079]
[1733994580919,1.32922808,3921.4,3920.4,2.55075]
[1733994581272,1.06569792,3922.0,3920.2,0.8152]
[1733994581614,0.26531995,3922.1,3920.2,0.8152]
[1733994581615,1.32922808,3921.7,3920.7,2.55056]
[1733994581915,0.1250172,3921.6,3920.7,2.55056]
[1733994583807,0.1250172,3921.6,3920.5,2.55068]
[1733994584835,2.6750272,3921.6,3920.5,2.55068]
[1733994585185,1.32922808,3921.4,3920.3,2.55081]
[1733994585887,1.32922808,3921.4,3920.4,2.55073]
[1733994586384,1.32922808,3921.4,3920.5,2.55067]
[1733994587784,1.32922808,3921.4,3920.3,2.55082]
[1733994589386,1.32922808,3921.4,3920.4,2.55074]
[1733994591118,1.32922808,3921.4,3920.5,2.55068]
[1733994593232,1.32922808,3921.4,3920.3,2.55078]
[1733994595580,1.32922808,3921.4,3920.4,2.55072]
[1733994598441,1.32922808,3921.4,3920.5,2.55067]
[1733994598584,1.32922808,3921.4,3920.5,2.55066]
[1733994600604,1.32922808,3921.4,3920.6,0.87935798]
[1733994600810,1.32922808,3921.4,3920.7,2.55055]
[1733994601732,0.1250172,3921.6,3920.7,2.55055]
[1733994601931,0.84258734,3921.6,3920.7,2.55055]
[1733994602136,0.84258734,3921.6,3921.0,2.55036]
[1733994602629,1.32922808,3921.7,3920.6,1.06086356]
[1733994602830,2.394926,3921.8,3920.9,2.55042]
[1733994603031,1.22518728,3921.7,3921.0,2.55036]
[1733994603235,2.394926,3921.8,3921.0,2.55036]
[1733994603236,2.51968186,3921.8,3921.0,2.55036]
[1733994603546,1.22548647,3921.7,3921.0,2.55036]
[1733994604590,2.51968186,3921.8,3921.0,2.55036]
[1733994604787,1.22543612,3921.7,3921.0,2.55036]
[1733994604992,2.51968186,3921.8,3921.0,2.55036]
[1733994605333,1.45398394,3921.8,3920.8,1.06086356]
[1733994605641,2.51968186,3921.8,3920.9,2.19896423]
[1733994605936,2.51968186,3921.8,3920.8,2.55048]
[1733994605937,2.51968186,3921.8,3921.0,0.87958569]
[1733994606104,1.45398394,3921.8,3921.0,2.55036]
[1733994606309,1.45398394,3921.8,3921.1,0.87944277]
[1733994606922,1.45398394,3921.8,3920.8,3.61135356]
[1733994607266,1.32922808,3921.5,3920.9,2.19875]
[1733994607422,1.32922808,3921.5,3920.8,0.8795]
[1733994607733,1.32922808,3921.5,3920.7,1.06086356]
[1733994607734,1.32922808,3921.5,3920.9,2.19865944]
[1733994608037,1.32922808,3921.5,3921.0,0.8795]
[1733994608216,1.32922808,3921.5,3920.7,3.61142356]
[1733994608421,1.32922808,3921.5,3920.8,2.19857497]
[1733994608619,1.32922808,3921.5,3920.9,2.19857497]
[1733994608938,1.32922808,3921.5,3921.0,0.87942999]
[1733994609139,1.32922808,3921.5,3920.7,3.61142356]
[1733994609325,1.32922808,3921.5,3920.8,2.19839418]
[1733994609519,1.32922808,3921.5,3920.9,2.19839418]
[1733994609719,1.32922808,3921.5,3921.0,0.87936655]
[1733994609923,1.32922808,3921.5,3920.7,1.06086356]
[1733994610233,1.32922808,3921.5,3920.8,0.87937011]
[1733994610436,1.32922808,3921.5,3920.9,2.19842527]
[1733994610609,1.32922808,3921.5,3921.0,0.87937011]
[1733994610852,1.32922808,3921.5,3920.6,1.58828322]
[1733994610853,1.58119627,3921.5,3920.6,1.06086356]
[1733994611009,1.32922808,3921.5,3920.7,0.87957629]
[1733994611209,1.32922808,3921.5,3920.8,2.19894073]
[1733994611447,1.32922808,3921.5,3920.9,0.87957629]
[1733994611621,1.32922808,3921.5,3920.6,1.06086356]
[1733994611942,1.32922808,3921.5,3920.7,0.87969935]
[1733994612095,1.32922808,3921.5,3920.8,2.19924838]
[1733994612295,1.32922808,3921.5,3920.9,0.87969935]
[1733994612612,1.32922808,3921.5,3920.7,1.06086356]
[1733994612940,3.87932808,3921.5,3920.8,0.87976721]
[1733994613232,0.4945026,3921.4,3920.8,0.87976721]
[1733994613440,3.87932808,3921.5,3920.9,0.87976721]
[1733994613738,3.87932808,3921.5,3920.7,1.06086356]
[1733994614034,3.87932808,3921.5,3920.8,0.87981892]
[1733994614239,3.87932808,3921.5,3920.9,0.87981892]
[1733994614446,3.87932808,3921.5,3920.6,1.06086356]
[1733994614741,1.32922808,3921.2,3920.7,2.20027887]
[1733994614910,1.32922808,3921.2,3920.5,1.06086356]
[1733994615111,1.32922808,3921.2,3920.6,2.2003136]
[1733994615323,1.32922808,3921.2,3920.3,1.06086356]
[1733994615324,2.55031,3921.1,3920.3,1.06086356]
[1733994615647,2.55031,3921.1,3919.9,4.66873097]
[1733994615648,2.5504,3921.0,3920.4,2.2009993]
[1733994615812,2.5504,3921.0,3920.1,1.06086356]
[1733994615996,2.5504,3921.0,3920.2,3.26186354]
[1733994616198,2.5504,3921.0,3920.3,2.20099998]
[1733994616436,2.5504,3921.0,3920.2,1.06086356]
[1733994616437,3.87965808,3920.9,3920.4,2.20099998]
[1733994616635,3.87965808,3920.9,3920.3,0.88039999]
[1733994616822,3.87965808,3920.9,3920.0,1.06086356]
[1733994617032,4.945356,3920.9,3920.1,2.20137288]
[1733994617199,4.945356,3920.9,3920.2,0.88054915]
[1733994617545,4.945356,3920.9,3920.0,1.06086356]
[1733994617834,2.394926,3920.9,3920.1,0.88048846]
[1733994618142,3.87966808,3920.9,3920.2,2.20122116]
[1733994618312,3.87966808,3920.9,3920.3,0.88031471]
[1733994618513,3.87966808,3920.9,3920.0,1.06086356]
[1733994618840,3.87966808,3920.9,3920.1,2.20088473]
[1733994619168,3.87966808,3920.9,3920.2,2.20088473]
[1733994619306,3.87966808,3920.9,3920.0,1.06086356]
[1733994619511,3.87966808,3920.9,3920.1,0.88024603]
[1733994619707,3.87966808,3920.9,3920.2,2.20061507]
[1733994620050,3.87966808,3920.9,3920.0,1.06086356]
[1733994620248,3.87966808,3920.9,3920.1,0.88013445]
[1733994620621,2.55044,3920.9,3920.2,0.88013445]
[1733994620804,3.87966808,3920.9,3920.0,1.06086356]
[1733994621006,1.72008521,3921.0,3920.1,0.88013199]
[1733994621007,1.06569792,3921.0,3920.1,0.88013199]
[1733994621235,2.29137634,3921.1,3920.2,0.88013199]
[1733994621545,4.84169634,3921.1,3920.2,0.88013199]
[1733994621714,1.22567842,3921.0,3920.2,0.88013199]
[1733994622059,1.22567842,3921.0,3920.3,0.88013199]
[1733994622278,3.61601792,3921.1,3920.4,0.87997143]
[1733994622279,2.55032,3921.1,3920.4,0.87997143]
[1733994622479,2.55032,3921.1,3920.1,1.06086356]
[1733994622629,2.55032,3921.1,3920.2,0.87995307]
[1733994622829,3.61601792,3921.1,3920.2,0.87995307]
[1733994623032,1.22562542,3921.0,3920.3,0.87995307]
[1733994623234,2.55038,3921.0,3920.0,1.89006356]
[1733994623432,2.55038,3921.0,3920.1,2.1999135]
[1733994623634,2.55038,3921.0,3920.2,2.1999135]
[1733994623958,2.55038,3921.0,3920.3,0.8799654]
[1733994624166,3.01796974,3921.0,3920.0,1.06086356]
[1733994624365,3.01796974,3921.0,3920.1,0.8799176]
[1733994624568,3.01796974,3921.0,3920.2,2.19979401]
[1733994624864,3.01796974,3921.0,3920.3,0.8799176]
[1733994625185,3.01796974,3921.0,3920.0,1.06086356]
[1733994625467,3.01796974,3921.0,3920.1,0.87976147]
[1733994625631,0.6067275,3920.9,3920.2,1.3196422]
[1733994625837,0.6067275,3920.9,3920.3,0.87976147]
[1733994626037,0.46758974,3921.0,3920.1,3.61176356]
[1733994626221,0.55,3921.1,3920.2,2.19932316]
[1733994626565,0.55,3921.1,3920.3,2.19932316]
[1733994626730,0.55,3921.1,3920.2,0.87972926]
[1733994626930,0.55,3921.1,3920.3,0.87970754]
[1733994627171,0.55,3921.1,3920.1,3.61176356]
[1733994627319,3.10031,3921.1,3920.2,2.19934518]
[1733994627525,3.85963384,3921.1,3920.3,0.87973807]
[1733994627756,3.98849705,3921.1,3920.1,1.06086356]
[1733994627969,0.67886321,3921.1,3920.2,0.87973702]
[1733994628122,1.06569792,3921.4,3920.3,0.87973702]
[1733994628319,1.61569792,3921.4,3920.4,0.87973702]
[1733994628673,1.61569792,3921.4,3920.5,0.87973702]
[1733994629027,2.84098748,3921.4,3920.5,0.87973702]
[1733994629365,0.55,3921.4,3920.5,0.87973702]
[1733994629537,1.77521953,3921.4,3920.5,0.87973702]
[1733994629867,0.55,3921.4,3920.5,0.87973702]
[1733994630033,1.77522472,3921.4,3920.5,0.87973702]
[1733994630366,6.21495043,3921.4,3920.5,0.87973702]
[1733994630549,1.22522472,3921.3,3920.3,2.55081]
[1733994630733,1.22522472,3921.3,3920.4,2.19912016]
[1733994631067,1.22522472,3921.3,3920.5,0.87964806]
[1733994631236,1.22522472,3921.3,3920.3,2.55081]
[1733994631418,4.98972571,3921.4,3920.4,2.19950228]
[1733994631622,0.1249235,3921.3,3920.4,2.19950228]
[1733994631837,1.35016064,3921.3,3920.4,2.19950228]
[1733994632454,0.1249235,3921.3,3920.4,2.19950228]
[1733994633126,1.35018369,3921.3,3920.4,2.19950228]
[1733994634722,0.1249235,3921.3,3920.5,0.87987798]
[1733994634924,1.04614183,3921.3,3920.3,3.61167356]
[1733994635163,1.04614183,3921.3,3920.4,2.1996024]
[1733994638639,1.32922808,3921.2,3920.4,2.1996024]
[1733994638846,1.32922808,3921.2,3920.5,0.87984096]
[1733994639154,3.87946808,3921.2,3920.2,1.06086356]
[1733994639331,4.75888928,3921.2,3920.3,0.87992372]
[1733994639527,4.75888928,3921.2,3920.4,1.31988558]
[1733994639787,4.75888928,3921.2,3920.2,1.06086356]
[1733994639973,1.32922808,3920.5,3920.3,0.87988931]
[1733994640129,1.32922808,3920.5,3919.7,1.06086356]
[1733994640332,1.32922808,3920.5,3919.8,0.88017663]
[1733994640530,1.32922808,3920.5,3919.5,3.61218356]
[1733994640730,1.32922808,3920.5,3919.6,2.20071058]
[1733994641060,1.32922808,3920.5,3919.7,2.20071058]
[1733994641228,0.32922808,3920.5,3919.8,2.20071058]
[1733994641429,0.32922808,3920.5,3919.6,1.06086356]
[1733994641657,0.32922808,3920.5,3919.7,0.88007108]
[1733994641848,0.32922808,3920.5,3919.5,2.55132]
[1733994644133,2.87991808,3920.5,3919.3,2.55147]
[1733994644860,2.87991808,3920.5,3919.2,0.7597]
[1733994645066,2.87991808,3920.5,3919.4,2.55139]
[1733994646270,2.87991808,3920.5,3919.5,3.26385218]
[1733994646430,2.87991808,3920.5,3919.6,2.19973328]
[1733994646631,2.87991808,3920.5,3919.7,2.19973328]
[1733994646844,0.32922808,3920.5,3919.8,0.87989331]
[1733994647028,0.32922808,3920.5,3919.5,3.6154189]
[1733994647261,0.32922808,3920.5,3919.6,3.26348645]
[1733994647466,0.32922808,3920.5,3919.7,2.19936755]
[1733994647665,0.32922808,3920.5,3919.8,0.87974702]
[1733994647840,0.32922808,3920.5,3919.6,1.0641189]
[1733994648042,0.32922808,3920.5,3919.6,3.26343265]
[1733994648269,0.32922808,3920.5,3919.7,2.19931375]
[1733994648469,0.32922808,3920.5,3919.8,0.8797255]
[1733994648671,0.32922808,3920.5,3919.5,3.6154189]
[1733994648837,0.32922808,3920.5,3919.6,2.19924568]
[1733994649038,0.32922808,3920.5,3919.7,2.19924568]